[Event "*** Titled Tuesday Blitz"]
[Site "Chess.com"]
[Date "2021.03.02"]
[Round "1"]
[White "olksuna"]
[Black "Loy_Konstantin"]
[Result "1-0"]
[WhiteElo "2668"]
[BlackElo "2347"]
[TimeControl "180+1"]
[EndTime "10:07:18 PST"]
[Termination "olksuna won on time"]

1. e4 {[%clk 0:03:00.9]} 1... c5 {[%clk 0:02:59.2]} 2. Nf3 {[%clk 0:03:01]} 2...
d6 {[%clk 0:02:57.2]} 3. d4 {[%clk 0:03:01]} 3... cxd4 {[%clk 0:02:57]} 4. Nxd4
{[%clk 0:03:01.9]} 4... Nf6 {[%clk 0:02:57.4]} 5. Nc3 {[%clk 0:03:02.5]} 5... g6
{[%clk 0:02:57.9]} 6. Be3 {[%clk 0:03:01.3]} 6... Bg7 {[%clk 0:02:58]} 7. f3
{[%clk 0:03:01.8]} 7... O-O {[%clk 0:02:58.3]} 8. Qd2 {[%clk 0:03:02.1]} 8...
Nc6 {[%clk 0:02:58.8]} 9. O-O-O {[%clk 0:03:02.3]} 9... Bd7 {[%clk 0:02:58.1]}
10. Kb1 {[%clk 0:02:59.5]} 10... Ne5 {[%clk 0:02:57.9]} 11. g4 {[%clk
0:02:57.8]} 11... Rc8 {[%clk 0:02:58.3]} 12. h4 {[%clk 0:02:57.9]} 12... Qa5
{[%clk 0:02:58.2]} 13. Nb3 {[%clk 0:02:53.8]} 13... Qc7 {[%clk 0:02:55.8]} 14.
Be2 {[%clk 0:02:47.7]} 14... b5 {[%clk 0:02:53.4]} 15. g5 {[%clk 0:02:37.7]}
15... b4 {[%clk 0:02:50.2]} 16. Nd5 {[%clk 0:02:21.3]} 16... Nxd5 {[%clk
0:02:49.9]} 17. exd5 {[%clk 0:02:22.2]} 17... Nc4 {[%clk 0:02:27.4]} 18. Bxc4
{[%clk 0:02:21.5]} 18... Qxc4 {[%clk 0:02:28.3]} 19. h5 {[%clk 0:01:48.3]} 19...
Bf5 {[%clk 0:02:27.4]} 20. Rh2 {[%clk 0:01:42.4]} 20... Qb5 {[%clk 0:01:27.8]}
21. Rc1 {[%clk 0:01:33.1]} 21... a5 {[%clk 0:01:20]} 22. h6 {[%clk 0:01:18.1]}
22... Be5 {[%clk 0:01:11]} 23. Nd4 {[%clk 0:01:04.5]} 23... Qd7 {[%clk
0:00:20.1]} 24. f4 {[%clk 0:00:45.7]} 24... Bh8 {[%clk 0:00:19.4]} 25. Nc6
{[%clk 0:00:39.1]} 25... Rxc6 {[%clk 0:00:18]} 26. dxc6 {[%clk 0:00:38.5]} 26...
Qxc6 {[%clk 0:00:18.9]} 27. Bd4 {[%clk 0:00:38.9]} 27... e5 {[%clk 0:00:16.8]}
28. fxe5 {[%clk 0:00:35.8]} 28... dxe5 {[%clk 0:00:17.7]} 29. Be3 {[%clk
0:00:32.9]} 29... Rc8 {[%clk 0:00:18]} 30. Rd1 {[%clk 0:00:25.5]} 30... Kf8
{[%clk 0:00:06.7]} 31. Qd6+ {[%clk 0:00:21.3]} 31... Qxd6 {[%clk 0:00:04.8]} 32.
Rxd6 {[%clk 0:00:22.2]} 32... Ke7 {[%clk 0:00:04.5]} 33. Ra6 {[%clk 0:00:21.3]}
33... e4 {[%clk 0:00:03]} 34. Rd2 {[%clk 0:00:18.6]} 34... Be5 {[%clk 0:00:02]}
35. Rxa5 {[%clk 0:00:18.4]} 35... f6 {[%clk 0:00:01.1]} 36. Ra7+ {[%clk
0:00:16.7]} 36... Ke6 {[%clk 0:00:01.1]} 37. Rxh7 {[%clk 0:00:16.3]} 1-0

[Event "*** Titled Tuesday Blitz"]
[Site "Chess.com"]
[Date "2021.03.02"]
[Round "1"]
[White "BulletMercenary"]
[Black "Vaathi_Coming"]
[Result "0-1"]
[WhiteElo "2435"]
[BlackElo "2849"]
[TimeControl "180+1"]
[EndTime "10:07:19 PST"]
[Termination "Vaathi_Coming won by resignation"]

1. e4 {[%clk 0:02:58.8]} 1... g6 {[%clk 0:02:59.9]} 2. d4 {[%clk 0:02:58.6]}
2... Bg7 {[%clk 0:03:00.6]} 3. c3 {[%clk 0:02:58.8]} 3... d6 {[%clk 0:02:59.9]}
4. f4 {[%clk 0:02:58.5]} 4... Nf6 {[%clk 0:03:00.1]} 5. Bd3 {[%clk 0:02:55]}
5... e5 {[%clk 0:02:54.6]} 6. Nf3 {[%clk 0:02:54.7]} 6... Bg4 {[%clk 0:02:52.3]}
7. h3 {[%clk 0:02:51.5]} 7... Bxf3 {[%clk 0:02:50.7]} 8. Qxf3 {[%clk 0:02:52.4]}
8... Nfd7 {[%clk 0:02:47.4]} 9. fxe5 {[%clk 0:02:36]} 9... dxe5 {[%clk
0:02:48.3]} 10. O-O {[%clk 0:02:36.2]} 10... O-O {[%clk 0:02:47.5]} 11. Be3
{[%clk 0:02:33.3]} 11... exd4 {[%clk 0:02:43.7]} 12. cxd4 {[%clk 0:02:32.9]}
12... Nc6 {[%clk 0:02:42.8]} 13. Qf2 {[%clk 0:02:27.2]} 13... Nc5 {[%clk
0:02:38.7]} 14. Rd1 {[%clk 0:01:58.1]} 14... Bxd4 {[%clk 0:02:33.3]} 15. Nc3
{[%clk 0:01:54.6]} 15... Bxe3 {[%clk 0:02:16.1]} 16. Qxe3 {[%clk 0:01:55.5]}
16... Qd4 {[%clk 0:02:15]} 17. Qxd4 {[%clk 0:01:40.6]} 17... Nxd4 {[%clk
0:02:15.9]} 18. Bc4 {[%clk 0:01:40.9]} 18... Nce6 {[%clk 0:01:54.9]} 19. Rd3
{[%clk 0:01:11.1]} 19... Rad8 {[%clk 0:01:45]} 20. Rad1 {[%clk 0:01:10.4]} 20...
c6 {[%clk 0:01:31.8]} 21. e5 {[%clk 0:01:06.8]} 21... b5 {[%clk 0:01:20.9]} 22.
Bxe6 {[%clk 0:00:58.3]} 22... Nxe6 {[%clk 0:01:21.8]} 23. Ne4 {[%clk 0:00:57.7]}
23... Rxd3 {[%clk 0:01:15.9]} 24. Rxd3 {[%clk 0:00:58.6]} 24... Rd8 {[%clk
0:01:16.3]} 25. Rc3 {[%clk 0:00:52.9]} 25... Nd4 {[%clk 0:01:08]} 26. Kf2 {[%clk
0:00:50]} 26... Kf8 {[%clk 0:01:08]} 27. g4 {[%clk 0:00:42.3]} 27... Ke7 {[%clk
0:01:05.3]} 28. Ke3 {[%clk 0:00:42.3]} 28... Rd5 {[%clk 0:00:43.7]} 29. b4
{[%clk 0:00:34.7]} 29... Ne6 {[%clk 0:00:40.3]} 30. Rxc6 {[%clk 0:00:27]} 30...
Rxe5 {[%clk 0:00:40.2]} 31. Kd3 {[%clk 0:00:22.9]} 31... f5 {[%clk 0:00:35.2]}
32. gxf5 {[%clk 0:00:20.6]} 32... gxf5 {[%clk 0:00:36.1]} 33. Nc3 {[%clk
0:00:18.8]} 33... f4 {[%clk 0:00:32.7]} 34. Ra6 {[%clk 0:00:17.6]} 34... f3
{[%clk 0:00:20.4]} 35. Rxa7+ {[%clk 0:00:15.9]} 35... Kf6 {[%clk 0:00:19.8]} 36.
Ne4+ {[%clk 0:00:14.5]} 36... Rxe4 {[%clk 0:00:18.1]} 37. Kxe4 {[%clk
0:00:07.4]} 37... f2 {[%clk 0:00:18.6]} 0-1

[Event "*** Titled Tuesday Blitz"]
[Site "Chess.com"]
[Date "2021.03.02"]
[Round "1"]
[White "DonPreuss"]
[Black "Mikhail_Golubev"]
[Result "0-1"]
[WhiteElo "2275"]
[BlackElo "2587"]
[TimeControl "180+1"]
[EndTime "10:07:19 PST"]
[Termination "Mikhail_Golubev won on time"]

1. d4 {[%clk 0:03:00.2]} 1... Nf6 {[%clk 0:02:59.4]} 2. Nc3 {[%clk 0:02:59.7]}
2... d5 {[%clk 0:02:56.4]} 3. e4 {[%clk 0:02:59.7]} 3... dxe4 {[%clk 0:02:55.4]}
4. f3 {[%clk 0:03:00]} 4... e3 {[%clk 0:02:55.4]} 5. Bxe3 {[%clk 0:02:59.1]}
5... Bf5 {[%clk 0:02:47.3]} 6. Nge2 {[%clk 0:02:59.1]} 6... e6 {[%clk
0:02:39.2]} 7. Ng3 {[%clk 0:02:59]} 7... Bg6 {[%clk 0:02:38.3]} 8. Bd3 {[%clk
0:02:58.7]} 8... Bd6 {[%clk 0:02:32.7]} 9. O-O {[%clk 0:02:53]} 9... O-O {[%clk
0:02:30]} 10. Nce4 {[%clk 0:02:41.4]} 10... Nbd7 {[%clk 0:02:22.2]} 11. Nxd6
{[%clk 0:02:36.1]} 11... cxd6 {[%clk 0:02:22.3]} 12. f4 {[%clk 0:02:36.1]} 12...
Nd5 {[%clk 0:02:04.3]} 13. Bc1 {[%clk 0:02:21.9]} 13... Bxd3 {[%clk 0:01:58.6]}
14. Qxd3 {[%clk 0:02:21.2]} 14... Rc8 {[%clk 0:01:55.9]} 15. c3 {[%clk
0:02:16.2]} 15... f5 {[%clk 0:01:49.8]} 16. Bd2 {[%clk 0:02:12.3]} 16... Re8
{[%clk 0:01:40.6]} 17. Rae1 {[%clk 0:02:10.6]} 17... N5f6 {[%clk 0:01:38.4]} 18.
c4 {[%clk 0:01:40.4]} 18... d5 {[%clk 0:01:38]} 19. c5 {[%clk 0:01:36]} 19...
Ne4 {[%clk 0:01:27.8]} 20. b4 {[%clk 0:01:29.2]} 20... Ndf6 {[%clk 0:01:20.1]}
21. b5 {[%clk 0:01:21.2]} 21... Nxg3 {[%clk 0:01:12.7]} 22. Qxg3 {[%clk
0:01:16.9]} 22... Ne4 {[%clk 0:01:13.4]} 23. Qd3 {[%clk 0:01:15.9]} 23... Qf6
{[%clk 0:01:09.3]} 24. Rb1 {[%clk 0:01:10.2]} 24... h6 {[%clk 0:01:03.4]} 25.
Rfc1 {[%clk 0:01:08.2]} 25... g5 {[%clk 0:00:54.1]} 26. c6 {[%clk 0:01:08.2]}
26... b6 {[%clk 0:00:54.2]} 27. a4 {[%clk 0:00:49.5]} 27... Rc7 {[%clk
0:00:47.8]} 28. a5 {[%clk 0:00:48.2]} 28... bxa5 {[%clk 0:00:38.1]} 29. Bxa5
{[%clk 0:00:45.9]} 29... Rg7 {[%clk 0:00:38.3]} 30. c7 {[%clk 0:00:38]} 30...
Rc8 {[%clk 0:00:37.7]} 31. b6 {[%clk 0:00:35.2]} 31... axb6 {[%clk 0:00:37.7]}
32. Rxb6 {[%clk 0:00:14.4]} 32... Kh7 {[%clk 0:00:28]} 33. Rb8 {[%clk
0:00:12.9]} 33... Rgg8 {[%clk 0:00:21.8]} 34. Rcb1 {[%clk 0:00:07.1]} 34... gxf4
{[%clk 0:00:18.1]} 35. Rxc8 {[%clk 0:00:04.5]} 35... Rxc8 {[%clk 0:00:17.7]} 36.
Rb8 {[%clk 0:00:05.1]} 36... Qh8 {[%clk 0:00:17.6]} 37. h3 {[%clk 0:00:01.4]}
37... Qe8 {[%clk 0:00:14.8]} 0-1

[Event "*** Titled Tuesday Blitz"]
[Site "Chess.com"]
[Date "2021.03.02"]
[Round "1"]
[White "manipun1"]
[Black "LawrenceTrent"]
[Result "1/2-1/2"]
[WhiteElo "2232"]
[BlackElo "2533"]
[TimeControl "180+1"]
[EndTime "10:07:19 PST"]
[Termination "Game drawn by repetition"]

1. e4 {[%clk 0:03:00.9]} 1... e5 {[%clk 0:03:00]} 2. Nf3 {[%clk 0:03:00.1]} 2...
Nc6 {[%clk 0:03:00.6]} 3. Bc4 {[%clk 0:03:00.6]} 3... h6 {[%clk 0:02:57.9]} 4.
d3 {[%clk 0:02:59.2]} 4... Nf6 {[%clk 0:02:49.8]} 5. c3 {[%clk 0:02:58.7]} 5...
g6 {[%clk 0:02:40.2]} 6. Nbd2 {[%clk 0:02:57.6]} 6... Bg7 {[%clk 0:02:39.9]} 7.
O-O {[%clk 0:02:57.6]} 7... O-O {[%clk 0:02:40.5]} 8. Re1 {[%clk 0:02:57.7]}
8... d5 {[%clk 0:02:40.1]} 9. Bb3 {[%clk 0:02:56.6]} 9... Be6 {[%clk 0:02:34.5]}
10. h3 {[%clk 0:02:45]} 10... Qd7 {[%clk 0:02:28.4]} 11. Nf1 {[%clk 0:02:43.7]}
11... dxe4 {[%clk 0:02:27.4]} 12. dxe4 {[%clk 0:02:42.5]} 12... Qxd1 {[%clk
0:02:25.7]} 13. Bxd1 {[%clk 0:02:42.3]} 13... Rad8 {[%clk 0:02:25.6]} 14. Bb3
{[%clk 0:02:40.5]} 14... Bxb3 {[%clk 0:02:24.8]} 15. axb3 {[%clk 0:02:39.8]}
15... a6 {[%clk 0:02:25.3]} 16. b4 {[%clk 0:02:39.6]} 16... Rfe8 {[%clk
0:02:20.3]} 17. N3d2 {[%clk 0:02:37.7]} 17... Nh5 {[%clk 0:02:12.5]} 18. Nb3
{[%clk 0:02:36.7]} 18... Bf8 {[%clk 0:02:08.9]} 19. g3 {[%clk 0:02:33.7]} 19...
Kg7 {[%clk 0:02:08.2]} 20. Ne3 {[%clk 0:02:33.4]} 20... Nf6 {[%clk 0:02:07.7]}
21. Nc4 {[%clk 0:02:30.6]} 21... Nb8 {[%clk 0:02:01.3]} 22. f3 {[%clk 0:02:17]}
22... b6 {[%clk 0:01:59.6]} 23. Be3 {[%clk 0:02:16.6]} 23... h5 {[%clk
0:01:58.6]} 24. h4 {[%clk 0:02:15.6]} 24... Ng8 {[%clk 0:01:57.7]} 25. Kf2
{[%clk 0:02:15.3]} 25... Kf6 {[%clk 0:01:55.6]} 26. Bg5+ {[%clk 0:02:13.8]}
26... Ke6 {[%clk 0:01:55]} 27. Bxd8 {[%clk 0:02:13.8]} 27... Rxd8 {[%clk
0:01:55.9]} 28. Red1 {[%clk 0:02:14.1]} 28... Rc8 {[%clk 0:01:54.9]} 29. Ke2
{[%clk 0:02:11.3]} 29... Nf6 {[%clk 0:01:52.6]} 30. Rd2 {[%clk 0:02:08.6]} 30...
Bh6 {[%clk 0:01:51.7]} 31. Rd3 {[%clk 0:02:08.4]} 31... Nfd7 {[%clk 0:01:50.8]}
32. Rad1 {[%clk 0:02:05.8]} 32... Bf8 {[%clk 0:01:46.7]} 33. Ne3 {[%clk
0:02:04.3]} 33... c6 {[%clk 0:01:43.2]} 34. Nc4 {[%clk 0:02:01.6]} 34... b5
{[%clk 0:01:37.1]} 35. Nd6 {[%clk 0:01:54.5]} 35... Rc7 {[%clk 0:01:37.5]} 36.
Nc5+ {[%clk 0:01:46.4]} 36... Nxc5 {[%clk 0:01:37.5]} 37. bxc5 {[%clk
0:01:45.9]} 37... Nd7 {[%clk 0:01:38.1]} 38. b4 {[%clk 0:01:44.6]} 38... a5
{[%clk 0:01:37]} 39. Ne8 {[%clk 0:01:43.6]} 39... Ra7 {[%clk 0:01:36.9]} 40. Nd6
{[%clk 0:01:37.8]} 40... a4 {[%clk 0:01:30.7]} 41. Kd2 {[%clk 0:01:33.4]} 41...
f5 {[%clk 0:01:27.9]} 42. Kc2 {[%clk 0:01:31.9]} 42... f4 {[%clk 0:01:26.1]} 43.
gxf4 {[%clk 0:01:31.3]} 43... exf4 {[%clk 0:01:27]} 44. Rg1 {[%clk 0:01:30.5]}
44... Ne5 {[%clk 0:01:27]} 45. Rdd1 {[%clk 0:01:21.2]} 45... Rd7 {[%clk
0:01:14.2]} 46. Rgf1 {[%clk 0:01:06.2]} 46... Bxd6 {[%clk 0:01:12]} 47. cxd6
{[%clk 0:01:05.5]} 47... Rxd6 {[%clk 0:01:12.9]} 48. Rxd6+ {[%clk 0:01:05.1]}
48... Kxd6 {[%clk 0:01:13.8]} 49. Kd2 {[%clk 0:01:01]} 49... c5 {[%clk
0:01:12.3]} 50. Ke2 {[%clk 0:01:00.4]} 50... c4 {[%clk 0:01:05]} 51. Rd1+ {[%clk
0:00:57.5]} 51... Nd3 {[%clk 0:01:05.3]} 52. Rg1 {[%clk 0:00:47.6]} 52... Ne5
{[%clk 0:01:05.1]} 53. Rg5 {[%clk 0:00:41.7]} 53... Ke6 {[%clk 0:00:58.7]} 54.
Rg1 {[%clk 0:00:41.4]} 54... Kf6 {[%clk 0:00:56.3]} 55. Rg5 {[%clk 0:00:39.4]}
55... Ke6 {[%clk 0:00:49.9]} 56. Rg1 {[%clk 0:00:38.5]} 56... Ke7 {[%clk
0:00:45.9]} 57. Rg5 {[%clk 0:00:37.3]} 57... Kf6 {[%clk 0:00:46.2]} 58. Rg1
{[%clk 0:00:37.1]} 58... Ke6 {[%clk 0:00:34.2]} 59. Rg5 {[%clk 0:00:36.7]} 59...
Kf6 {[%clk 0:00:34.2]} 60. Rg1 {[%clk 0:00:36.5]} 60... Ke6 {[%clk 0:00:34.6]}
61. Rg5 {[%clk 0:00:36.2]} 61... Kf6 {[%clk 0:00:35]} 1/2-1/2

[Event "*** Titled Tuesday Blitz"]
[Site "Chess.com"]
[Date "2021.03.02"]
[Round "1"]
[White "Leo_C"]
[Black "AlexTriapishko"]
[Result "0-1"]
[WhiteElo "2417"]
[BlackElo "2809"]
[TimeControl "180+1"]
[EndTime "10:07:20 PST"]
[Termination "AlexTriapishko won by resignation"]

1. d4 {[%clk 0:03:00.3]} 1... Nf6 {[%clk 0:02:59.5]} 2. c4 {[%clk 0:02:59.9]}
2... e6 {[%clk 0:02:56.2]} 3. Nc3 {[%clk 0:02:56]} 3... Bb4 {[%clk 0:02:53.9]}
4. e3 {[%clk 0:02:54.3]} 4... O-O {[%clk 0:02:52.5]} 5. Bd3 {[%clk 0:02:52.2]}
5... c5 {[%clk 0:02:49.8]} 6. d5 {[%clk 0:02:51.6]} 6... exd5 {[%clk 0:02:44.9]}
7. cxd5 {[%clk 0:02:51.4]} 7... d6 {[%clk 0:02:34]} 8. Ne2 {[%clk 0:02:50.5]}
8... Re8 {[%clk 0:02:25.8]} 9. O-O {[%clk 0:02:49.8]} 9... a6 {[%clk 0:02:25.4]}
10. a4 {[%clk 0:02:44.4]} 10... Nbd7 {[%clk 0:02:18.8]} 11. e4 {[%clk
0:02:40.3]} 11... Ne5 {[%clk 0:01:57.9]} 12. Bc2 {[%clk 0:02:36.2]} 12... Bd7
{[%clk 0:01:58.1]} 13. Ng3 {[%clk 0:02:23.7]} 13... b5 {[%clk 0:01:55.6]} 14.
axb5 {[%clk 0:02:21.2]} 14... axb5 {[%clk 0:01:54.8]} 15. Rxa8 {[%clk
0:02:14.9]} 15... Qxa8 {[%clk 0:01:55.7]} 16. Bg5 {[%clk 0:02:14.7]} 16... Nfg4
{[%clk 0:01:36.9]} 17. h3 {[%clk 0:02:04.5]} 17... h6 {[%clk 0:01:35.5]} 18. Bd2
{[%clk 0:01:39.9]} 18... Nf6 {[%clk 0:01:28.1]} 19. b3 {[%clk 0:01:32.7]} 19...
Qa5 {[%clk 0:01:19.9]} 20. Qa1 {[%clk 0:01:22.3]} 20... Ra8 {[%clk 0:01:15.7]}
21. Qxa5 {[%clk 0:01:21.2]} 21... Rxa5 {[%clk 0:01:16.6]} 22. f4 {[%clk
0:01:20.2]} 22... Ng6 {[%clk 0:01:15.8]} 23. e5 {[%clk 0:01:12.9]} 23... dxe5
{[%clk 0:01:13.7]} 24. Bxg6 {[%clk 0:01:11.9]} 24... exf4 {[%clk 0:01:00]} 25.
Bxf7+ {[%clk 0:00:53]} 25... Kxf7 {[%clk 0:01:00.9]} 26. Rxf4 {[%clk 0:00:52.5]}
26... Ra3 {[%clk 0:00:53.5]} 27. Nge4 {[%clk 0:00:37.8]} 27... Rxb3 {[%clk
0:00:49.7]} 28. Nxf6 {[%clk 0:00:37.2]} 28... gxf6 {[%clk 0:00:50.6]} 29. Ne4
{[%clk 0:00:27.9]} 29... f5 {[%clk 0:00:41.1]} 30. Bxb4 {[%clk 0:00:24.7]} 30...
Rxb4 {[%clk 0:00:42]} 31. Nd6+ {[%clk 0:00:21.7]} 31... Ke7 {[%clk 0:00:42.4]}
32. Nxf5+ {[%clk 0:00:17.4]} 32... Bxf5 {[%clk 0:00:40.8]} 33. Rxf5 {[%clk
0:00:17.6]} 33... Rd4 {[%clk 0:00:40.3]} 34. Rh5 {[%clk 0:00:14.7]} 34... b4
{[%clk 0:00:39.7]} 35. Rxh6 {[%clk 0:00:14.8]} 35... b3 {[%clk 0:00:40.1]} 36.
Rb6 {[%clk 0:00:14.8]} 36... c4 {[%clk 0:00:40.4]} 37. d6+ {[%clk 0:00:15]}
37... Rxd6 {[%clk 0:00:40]} 38. Rb4 {[%clk 0:00:13.9]} 38... Rc6 {[%clk
0:00:35.7]} 39. h4 {[%clk 0:00:13.5]} 39... Kd6 {[%clk 0:00:35.9]} 40. h5 {[%clk
0:00:13.4]} 40... Kc5 {[%clk 0:00:36.3]} 41. Rb8 {[%clk 0:00:12.3]} 41... Rb6
{[%clk 0:00:31.2]} 42. Rc8+ {[%clk 0:00:11.8]} 42... Kb4 {[%clk 0:00:30.9]} 43.
Rd8 {[%clk 0:00:10.7]} 43... b2 {[%clk 0:00:31]} 44. Rd1 {[%clk 0:00:10.7]}
44... c3 {[%clk 0:00:31.5]} 45. h6 {[%clk 0:00:10.7]} 45... c2 {[%clk
0:00:31.5]} 46. Rf1 {[%clk 0:00:10]} 46... Rxh6 {[%clk 0:00:29.7]} 0-1

[Event "*** Titled Tuesday Blitz"]
[Site "Chess.com"]
[Date "2021.03.02"]
[Round "1"]
[White "FCChelsea14"]
[Black "PavelChernomordik"]
[Result "1-0"]
[WhiteElo "2720"]
[BlackElo "2388"]
[TimeControl "180+1"]
[EndTime "10:07:20 PST"]
[Termination "FCChelsea14 won on time"]

1. d4 {[%clk 0:03:00.9]} 1... g6 {[%clk 0:02:58.7]} 2. c4 {[%clk 0:03:00.4]}
2... Bg7 {[%clk 0:02:58.1]} 3. Nc3 {[%clk 0:03:00.5]} 3... d6 {[%clk 0:02:57.9]}
4. e4 {[%clk 0:03:00.5]} 4... c6 {[%clk 0:02:57.5]} 5. Nf3 {[%clk 0:03:00]} 5...
a6 {[%clk 0:02:55.4]} 6. Be2 {[%clk 0:02:57.1]} 6... b5 {[%clk 0:02:55]} 7. O-O
{[%clk 0:02:57]} 7... Nf6 {[%clk 0:02:54.4]} 8. e5 {[%clk 0:02:52.8]} 8... dxe5
{[%clk 0:02:46.5]} 9. dxe5 {[%clk 0:02:48.4]} 9... Qxd1 {[%clk 0:02:45]} 10.
Rxd1 {[%clk 0:02:48.3]} 10... Ng4 {[%clk 0:02:44.6]} 11. Bf4 {[%clk 0:02:48.1]}
11... Nd7 {[%clk 0:02:41.3]} 12. e6 {[%clk 0:02:39]} 12... fxe6 {[%clk
0:02:40.4]} 13. h3 {[%clk 0:02:34]} 13... Nge5 {[%clk 0:02:29.3]} 14. Nxe5
{[%clk 0:02:30.2]} 14... Nxe5 {[%clk 0:02:27.8]} 15. cxb5 {[%clk 0:02:29.6]}
15... axb5 {[%clk 0:02:26.9]} 16. Re1 {[%clk 0:02:25.4]} 16... O-O {[%clk
0:02:19.9]} 17. Bxe5 {[%clk 0:02:20.6]} 17... Bxe5 {[%clk 0:02:17.5]} 18. Bf3
{[%clk 0:02:21.5]} 18... Bd4 {[%clk 0:01:54.7]} 19. Re2 {[%clk 0:02:00.8]} 19...
b4 {[%clk 0:01:45.8]} 20. Nb5 {[%clk 0:01:53.3]} 20... cxb5 {[%clk 0:01:36.8]}
21. Bxa8 {[%clk 0:01:51.5]} 21... e5 {[%clk 0:01:35.1]} 22. Bc6 {[%clk
0:01:48.3]} 22... Ba6 {[%clk 0:01:24.6]} 23. a3 {[%clk 0:01:47.3]} 23... b3
{[%clk 0:01:21]} 24. Bd5+ {[%clk 0:01:45.5]} 24... Kg7 {[%clk 0:01:18.5]} 25.
Bxb3 {[%clk 0:01:45.5]} 25... b4 {[%clk 0:01:17.1]} 26. Rd2 {[%clk 0:01:45.6]}
26... bxa3 {[%clk 0:01:09.9]} 27. Rxa3 {[%clk 0:01:44.9]} 27... Bb5 {[%clk
0:01:08.3]} 28. Bd5 {[%clk 0:01:38.3]} 28... Rd8 {[%clk 0:01:00.8]} 29. Be4
{[%clk 0:01:37]} 29... Rc8 {[%clk 0:00:53.9]} 30. Rc2 {[%clk 0:01:37]} 30... Rb8
{[%clk 0:00:50.3]} 31. g3 {[%clk 0:01:35.2]} 31... Bd7 {[%clk 0:00:46.7]} 32.
Kg2 {[%clk 0:01:34.7]} 32... Bf5 {[%clk 0:00:32.9]} 33. Bxf5 {[%clk 0:01:30.4]}
33... gxf5 {[%clk 0:00:31.2]} 34. b3 {[%clk 0:01:21]} 34... Kf6 {[%clk
0:00:22.3]} 35. Ra6+ {[%clk 0:01:19.6]} 35... Kf7 {[%clk 0:00:19.6]} 36. Ra5
{[%clk 0:01:10.2]} 36... Rxb3 {[%clk 0:00:17.4]} 37. f4 {[%clk 0:01:10.3]} 37...
Re3 {[%clk 0:00:11.1]} 38. fxe5 {[%clk 0:01:05.5]} 38... Bxe5 {[%clk 0:00:10.2]}
39. Rf2 {[%clk 0:01:03.2]} 39... e6 {[%clk 0:00:08.8]} 40. Rf3 {[%clk
0:01:01.7]} 40... Re2+ {[%clk 0:00:08.3]} 41. Rf2 {[%clk 0:01:02.1]} 41... Re3
{[%clk 0:00:07.9]} 42. g4 {[%clk 0:01:03]} 42... Kf6 {[%clk 0:00:05.3]} 43. Ra6
{[%clk 0:00:59.6]} 43... f4 {[%clk 0:00:04.1]} 44. Rf3 {[%clk 0:00:46.4]} 44...
Re2+ {[%clk 0:00:02.9]} 45. Kf1 {[%clk 0:00:46.6]} 45... Rh2 {[%clk 0:00:01.9]}
46. Ra7 {[%clk 0:00:46.2]} 46... h6 {[%clk 0:00:01]} 47. Rh7 {[%clk 0:00:45.7]}
1-0

[Event "*** Titled Tuesday Blitz"]
[Site "Chess.com"]
[Date "2021.03.02"]
[Round "1"]
[White "Piacramling"]
[Black "juancruzarias"]
[Result "0-1"]
[WhiteElo "2325"]
[BlackElo "2639"]
[TimeControl "180+1"]
[EndTime "10:07:20 PST"]
[Termination "juancruzarias won on time"]

1. d4 {[%clk 0:02:52.9]} 1... Nf6 {[%clk 0:02:58.4]} 2. c4 {[%clk 0:02:52.6]}
2... c5 {[%clk 0:02:58.3]} 3. d5 {[%clk 0:02:51.8]} 3... e5 {[%clk 0:02:58.5]}
4. Nc3 {[%clk 0:02:50.2]} 4... d6 {[%clk 0:02:59]} 5. e4 {[%clk 0:02:49.7]} 5...
Nbd7 {[%clk 0:02:59.2]} 6. g3 {[%clk 0:02:48.5]} 6... Be7 {[%clk 0:02:59.6]} 7.
Bg2 {[%clk 0:02:47.4]} 7... O-O {[%clk 0:02:59.3]} 8. Nge2 {[%clk 0:02:46.3]}
8... Ne8 {[%clk 0:02:56]} 9. O-O {[%clk 0:02:44.8]} 9... Rb8 {[%clk 0:02:51.2]}
10. Be3 {[%clk 0:02:38.1]} 10... Nc7 {[%clk 0:02:49.8]} 11. a4 {[%clk
0:02:31.2]} 11... b6 {[%clk 0:02:49.2]} 12. Qd3 {[%clk 0:02:21.1]} 12... a6
{[%clk 0:02:45.4]} 13. Rab1 {[%clk 0:02:08]} 13... b5 {[%clk 0:02:21.7]} 14.
axb5 {[%clk 0:02:05.9]} 14... axb5 {[%clk 0:02:22.6]} 15. cxb5 {[%clk
0:02:05.8]} 15... Nb6 {[%clk 0:02:16.6]} 16. f4 {[%clk 0:01:47.9]} 16... Bf6
{[%clk 0:02:14.1]} 17. f5 {[%clk 0:01:29.8]} 17... Bd7 {[%clk 0:02:09]} 18. Ra1
{[%clk 0:01:15.9]} 18... Qe8 {[%clk 0:02:04.1]} 19. Ra5 {[%clk 0:00:50.9]} 19...
c4 {[%clk 0:01:46.5]} 20. Qc2 {[%clk 0:00:47.4]} 20... Nxb5 {[%clk 0:01:46.6]}
21. Nxb5 {[%clk 0:00:45.5]} 21... Bxb5 {[%clk 0:01:47.5]} 22. Nc3 {[%clk
0:00:44]} 22... Bd7 {[%clk 0:01:48]} 23. Rfa1 {[%clk 0:00:38.9]} 23... Qc8
{[%clk 0:01:37.1]} 24. Ra6 {[%clk 0:00:26.6]} 24... Bd8 {[%clk 0:01:34.8]} 25.
Qf2 {[%clk 0:00:25.8]} 25... Qc7 {[%clk 0:01:16.8]} 26. R1a2 {[%clk 0:00:23.6]}
26... Bc8 {[%clk 0:01:11.7]} 27. Ra7 {[%clk 0:00:22.3]} 27... Rb7 {[%clk
0:01:09.8]} 28. R7a3 {[%clk 0:00:15.7]} 28... Bd7 {[%clk 0:01:02.8]} 29. Ra6
{[%clk 0:00:14.2]} 29... Nc8 {[%clk 0:01:00.8]} 30. h3 {[%clk 0:00:13.3]} 30...
f6 {[%clk 0:00:46.7]} 31. Kh2 {[%clk 0:00:11.9]} 31... Qb8 {[%clk 0:00:42.9]}
32. Ra8 {[%clk 0:00:10.3]} 32... Qc7 {[%clk 0:00:42.4]} 33. R8a6 {[%clk
0:00:10.1]} 33... Ne7 {[%clk 0:00:40.1]} 34. Ra8 {[%clk 0:00:09.8]} 34... Kh8
{[%clk 0:00:35.3]} 35. R8a7 {[%clk 0:00:09.8]} 35... Nc8 {[%clk 0:00:31.2]} 36.
Rxb7 {[%clk 0:00:08.9]} 36... Qxb7 {[%clk 0:00:31]} 37. Qe2 {[%clk 0:00:07.4]}
37... Bb6 {[%clk 0:00:30]} 38. Bxb6 {[%clk 0:00:05.5]} 38... Nxb6 {[%clk
0:00:30.4]} 39. Qf2 {[%clk 0:00:04.2]} 39... Ra8 {[%clk 0:00:27.6]} 40. Rxa8+
{[%clk 0:00:02.5]} 40... Nxa8 {[%clk 0:00:25.3]} 41. h4 {[%clk 0:00:02.6]} 41...
Qb6 {[%clk 0:00:24.2]} 0-1